bitfinex-derivatives/quotes_ETHF0:USTF0_20210110
["timestamp","ask_amount","ask_price","bid_price","bid_amount"]
[1610321477571,2.0078,1272.8,1271.9,4.00959]
[1610321477772,2.0078,1272.8,1271.5,2.2324]
[1610321479371,4.00959,1272.0,1271.9,4.00959]
[1610321480374,4.00959,1272.0,1271.5,2.2324]
[1610321481278,4.00959,1272.0,1271.8,4.00959]
[1610321481481,4.00959,1272.0,1271.8,6.19569]
[1610321482483,2.0078,1272.8,1271.8,6.19569]
[1610321482882,5.6204,1273.6,1271.8,6.19569]
[1610321483283,5.6204,1273.6,1272.5,4.00959]
[1610321484884,5.6204,1273.6,1272.4,51.9624]
[1610321485285,4.00959,1272.5,1272.4,51.9624]
[1610321491089,4.00959,1272.5,1272.4,50.3028]
[1610321492795,4.00959,1272.5,1272.0,60.2946]
[1610321493393,4.00959,1272.1,1272.0,60.2946]
[1610321498194,1.99,1273.0,1272.0,60.2946]
[1610321498395,1.99,1273.0,1272.0,61.9887]
[1610321498596,2.3315,1273.3,1272.0,61.9887]
[1610321498996,5.8438,1273.4,1272.0,61.9887]
[1610321499396,4.00959,1272.7,1272.5,4.00959]
[1610321504898,4.00959,1272.7,1271.9,57.6239]
[1610321505500,4.00959,1272.3,1272.1,1.20514469]
[1610321505899,4.00959,1272.3,1272.1,3.14534469]
[1610321506800,1.9875,1273.4,1272.1,3.14534469]
[1610321506999,1.9875,1273.4,1272.1,1.9402]
[1610321507200,50.5947,1273.8,1272.1,1.9402]
[1610321507399,4.00959,1272.2,1272.1,1.9402]
[1610321508401,1.7917,1273.1,1272.1,1.9402]
[1610321509000,50.5947,1273.8,1272.1,1.9402]
[1610321509401,4.00959,1272.6,1272.5,4.00959]
[1610321509605,2.3551,1273.4,1272.5,4.00959]
[1610321511408,4.00959,1272.7,1272.5,4.00959]
[1610321512010,4.00959,1272.7,1272.4,2.1592]
[1610321512410,4.00959,1272.7,1272.3,52.8478]
[1610321513211,2.4862,1273.1,1272.3,52.8478]
[1610321513411,2.4862,1273.1,1273.0,4.00959]
[1610321513611,2.3551,1273.4,1273.0,4.00959]
[1610321514011,2.3551,1273.4,1272.5,1.5582]
[1610321514612,4.00959,1273.5,1272.5,9.0213]
[1610321515414,4.00959,1273.0,1272.8,4.00959]
[1610321516914,58.378,1273.6,1272.8,4.00959]
[1610321517516,4.00959,1273.5,1273.1,4.00959]
[1610321517717,58.378,1273.6,1273.1,4.00959]
[1610321518816,56.0833,1273.6,1273.1,5.56769]
[1610321519416,56.0833,1273.6,1273.5,4.00959]
[1610321520618,56.0833,1273.6,1273.4,2.1315]
[1610321521019,4.00959,1274.0,1273.4,2.1315]
[1610321521418,4.00959,1273.5,1273.4,2.1315]
[1610321524922,4.00959,1273.5,1273.1,1.5581]
[1610321525322,4.00959,1273.5,1272.9,63.0966]
[1610321525522,4.00959,1273.0,1272.9,63.0966]
[1610321525723,2.0852,1274.4,1272.9,63.0966]
[1610321526125,50.7726,1275.1,1272.9,64.9553]
[1610321526924,5.41219596,1275.0,1273.0,1.20426255]
[1610321527325,7.88449596,1275.0,1273.0,1.20426255]
[1610321527527,4.00959,1273.7,1273.4,4.00959]
[1610321528527,4.00959,1273.7,1273.4,11.41099]
[1610321528927,4.00959,1273.7,1273.4,7.4014]
[1610321529526,4.00959,1273.5,1273.4,7.4014]
[1610321537236,4.00959,1273.5,1273.4,8.60561905]
[1610321539844,4.00959,1273.5,1273.4,1.20421905]
[1610321540044,4.00959,1273.5,1272.8,4.00959]
[1610321541245,4.00959,1273.5,1272.9,1.20432747]
[1610321541645,4.00959,1273.1,1272.9,2.89982747]
[1610321542647,4.00959,1273.1,1273.0,1.20448633]
[1610321546051,4.00959,1273.1,1272.6,1.20488684]
[1610321547455,45.9918,1273.6,1272.2,1.20462424]
[1610321547654,4.00959,1273.3,1272.9,4.00959]
[1610321548754,45.9918,1273.6,1273.0,1.20434674]
[1610321548956,45.9918,1273.6,1273.0,2.82724674]
[1610321549155,2.2672,1274.4,1273.0,2.82724674]
[1610321549555,4.00959,1273.7,1273.6,4.00959]
[1610321550056,4.00959,1273.7,1273.1,1.20411711]
[1610321551564,1.6721,1274.4,1273.3,4.00959]
[1610321552763,5.41130298,1274.3,1273.4,1.20417184]
[1610321553564,5.41130298,1274.3,1273.7,4.00959]
[1610321553864,7.00430298,1274.3,1273.7,4.00959]
[1610321554165,1.593,1274.3,1273.7,4.00959]
[1610321554565,1.6721,1274.4,1273.7,3.98923796]
[1610321554964,2.4723,1275.0,1273.7,3.98923796]
[1610321555565,4.00959,1273.8,1273.7,3.98923796]
[1610321556767,2.3658,1274.6,1273.7,3.98923796]
[1610321557168,3.9352,1274.6,1273.7,3.98923796]
[1610321557568,3.9352,1274.6,1274.2,4.00959]
[1610321558166,2.3658,1274.6,1274.2,4.00959]
[1610321559269,3.9455,1274.6,1273.7,2.3655]
[1610321559669,4.00959,1273.9,1273.8,4.00959]
[1610321560069,4.00959,1273.9,1273.7,2.3655]
[1610321560770,5.56059,1273.9,1273.7,2.3655]
[1610321562071,1.551,1273.9,1273.7,2.3655]
[1610321562473,2.3658,1274.6,1273.7,2.3655]
[1610321562673,1.5231,1274.9,1273.4,6.10189]
[1610321563676,1.5231,1274.9,1274.7,4.00959]
[1610321564074,1.5231,1274.9,1274.1,2.452]
[1610321565377,1.5231,1274.9,1274.2,1.20327671]
[1610321565776,1.5231,1274.9,1274.8,4.00959]
[1610321566375,1.5231,1274.9,1274.2,1.20327671]
[1610321566777,1.5231,1274.9,1274.1,2.452]
[1610321567778,4.00959,1275.0,1274.8,4.00959]
[1610321568379,4.00959,1275.0,1274.2,1.20298679]
[1610321569781,4.00959,1274.8,1274.2,1.20298679]
[1610321571782,4.00959,1274.4,1274.2,5.21257679]
[1610321572184,4.00959,1274.4,1274.2,1.20298679]
[1610321572383,4.00959,1274.4,1274.1,2.452]
[1610321572783,4.00959,1274.4,1273.4,2.0923]
[1610321572983,4.00959,1274.4,1273.0,1.6229]
[1610321573182,4.00959,1274.4,1272.2,35.9694]
[1610321573582,4.00959,1274.4,1272.2,5.9694]
[1610321573783,4.00959,1274.1,1273.7,4.00959]
[1610321575286,4.00959,1274.1,1273.8,1.20318234]
[1610321575485,4.00959,1274.1,1273.8,3.36588234]
[1610321575685,4.00959,1274.1,1274.0,4.00959]
[1610321575886,4.00959,1274.1,1273.8,3.36588234]
[1610321576688,4.00959,1274.1,1273.9,1.20336623]
[1610321578188,4.00959,1274.1,1273.6,1.20365727]
[1610321579689,1.7545,1274.3,1273.7,4.00959]
[1610321580089,2.0444,1274.6,1273.7,4.00959]
[1610321580890,30.0,1275.2,1273.8,1.20327396]
[1610321581090,30.0,1275.2,1273.8,3.23947396]
[1610321581688,4.00959,1273.9,1273.8,3.23947396]
[1610321582290,4.00959,1273.9,1273.8,2.0362]
[1610321583590,4.00959,1273.9,1273.8,3.23965692]
[1610321586293,4.00959,1273.9,1273.8,2.0362]
[1610321586493,4.00959,1273.9,1273.5,1.6009]
[1610321586695,4.00959,1273.9,1273.3,4.00959]
[1610321587598,4.00959,1273.9,1273.4,1.20362753]
[1610321587796,4.00959,1273.5,1273.4,1.20362753]
[1610321589598,1.7224,1274.5,1273.4,1.20362753]
[1610321589798,1.7224,1274.5,1273.9,4.00959]
[1610321591699,1.7224,1274.5,1274.2,4.00959]
[1610321591900,64.197,1274.6,1274.2,4.00959]
[1610321592802,64.197,1274.6,1274.0,1.20340247]
[1610321593807,4.00959,1274.1,1273.6,4.00959]
[1610321595108,4.00959,1274.1,1273.7,1.20342821]
[1610321595710,4.00959,1273.8,1273.7,1.20342821]
[1610321597112,2.1357,1274.5,1273.7,1.20342821]
[1610321597814,4.00959,1274.1,1274.0,4.00959]
[1610321598013,2.1357,1274.5,1274.0,4.00959]
[1610321598414,55.5845,1274.8,1274.0,4.00959]
[1610321599614,55.5845,1274.8,1274.1,1.20298359]
[1610321599818,55.5845,1274.8,1274.3,4.00959]
[1610321600916,55.5845,1274.8,1274.4,1.20295149]
[1610321601919,4.00959,1274.5,1274.4,1.20295149]
[1610321603420,55.5845,1274.8,1274.4,1.20295149]
[1610321603621,53.3324,1274.8,1274.4,1.20295149]
[1610321603822,62.5125,1275.4,1274.7,4.00959]
[1610321604621,7.6772,1275.5,1274.7,4.00959]
[1610321604822,5.6611,1275.5,1274.7,4.00959]
[1610321605022,5.5365,1276.6,1274.7,4.00959]
[1610321605624,5.5365,1276.6,1274.9,64.9087]
[1610321605822,5.5365,1276.6,1275.4,4.00959]
[1610321606622,5.37298447,1276.5,1275.4,4.00959]
[1610321606926,7.84008447,1276.5,1275.4,4.00959]
[1610321607326,37.84008447,1276.5,1274.9,66.5134]
[1610321607927,4.00959,1275.1,1274.9,70.52299]
[1610321608127,4.00959,1275.1,1274.9,66.5134]
[1610321608927,4.00959,1275.1,1274.9,1.6047]
[1610321611029,4.00959,1275.1,1274.6,1.7894]
[1610321611229,4.00959,1275.1,1274.5,4.00959]
[1610321611832,59.6041,1275.9,1274.9,4.00959]
[1610321612232,59.6041,1275.9,1274.9,6.01839]
[1610321612834,89.6041,1275.9,1274.9,6.01839]
[1610321613833,4.00959,1275.0,1274.9,2.0088]
[1610321614433,4.00959,1275.0,1274.4,56.8077]
[1610321615940,2.3803,1275.1,1274.4,56.8077]
[1610321616739,2.3803,1275.1,1274.5,1.20278251]
[1610321616940,1.7963,1275.5,1274.5,3.02718251]
[1610321618140,1.7963,1275.5,1274.6,1.20269196]
[1610321619441,35.4626,1275.8,1274.6,1.20269196]
[1610321619842,4.00959,1274.7,1274.6,1.20269196]
[1610321620243,34.00959,1274.7,1274.6,1.20269196]
[1610321620843,34.00959,1274.7,1274.4,56.8077]
[1610321621844,34.00959,1274.5,1274.4,56.8077]
[1610321622044,35.82399,1274.5,1274.4,56.8077]
[1610321622844,35.82399,1274.5,1274.4,48.736]
[1610321623046,35.82399,1274.5,1271.1,3.405]
[1610321623445,30.0,1274.3,1271.1,3.405]
[1610321623646,35.7312,1274.3,1271.1,3.405]
[1610321623845,35.7312,1274.3,1273.2,4.00959]
[1610321624446,35.7312,1274.3,1272.7,1.8386]
[1610321624845,30.0,1274.4,1272.7,1.8386]
[1610321625948,4.00959,1273.4,1273.3,4.00959]
[1610321626647,1.6941,1274.2,1273.3,4.00959]
[1610321627050,1.8144,1274.5,1273.3,4.00959]
[1610321627450,21.2038028,1276.8,1273.3,4.00959]
[1610321627752,30.0,1275.8,1273.3,4.00959]
[1610321627951,4.00959,1274.5,1274.3,4.00959]
[1610321631257,4.00959,1274.5,1273.2,2.2257]
[1610321631857,4.00959,1274.2,1274.0,4.00959]
[1610321632762,4.00959,1274.2,1273.3,1.20310435]
[1610321632960,34.00959,1274.2,1273.3,1.20310435]
[1610321633561,34.00959,1274.2,1272.8,1.20334461]
[1610321633961,4.00959,1272.9,1272.8,1.20334461]
[1610321634560,1.792,1273.8,1272.8,1.20334461]
[1610321635361,5.9398,1274.0,1272.8,1.20334461]
[1610321635862,4.00959,1273.3,1272.9,4.00959]
[1610321636961,4.00959,1273.3,1272.8,1.20334461]
[1610321637163,34.00959,1273.3,1272.8,1.20334461]
[1610321637565,34.00959,1273.3,1273.0,1.20412675]
[1610321637967,4.00959,1273.1,1273.0,1.20412675]
[1610321638166,34.00959,1273.1,1273.0,1.20412675]
[1610321638364,36.48339,1273.1,1273.0,1.20412675]
[1610321638766,36.48339,1273.1,1272.1,1.20483075]
[1610321639969,4.00959,1272.2,1272.1,1.20483075]
[1610321641270,34.00959,1272.2,1272.1,1.20483075]
[1610321641472,5.89129,1272.2,1270.0,1.0]
[1610321641872,30.0,1272.1,1270.2,4.00959]
[1610321642472,35.8506,1272.1,1270.2,4.00959]
[1610321642672,35.8506,1272.1,1270.0,1.0]
[1610321642872,5.8506,1272.1,1270.0,1.0]
[1610321643073,35.8506,1272.1,1270.3,1.20563314]
[1610321643274,35.8506,1272.1,1270.3,3.55583314]
[1610321643472,35.8506,1272.1,1270.6,1.7965]
[1610321643974,4.00959,1270.7,1270.6,1.7965]
[1610321644273,2.3712,1271.5,1270.7,1.20572953]
[1610321645272,35.8506,1272.1,1270.7,1.20572953]
[1610321645873,4.00959,1270.8,1270.7,1.20572953]
[1610321647073,4.00959,1270.8,1270.3,2.3502]
[1610321648076,4.00959,1270.4,1270.3,2.3502]
[1610321648274,4.00959,1270.4,1270.0,1.0]
[1610321649975,4.00959,1270.2,1270.0,1.0]
[1610321651176,4.00959,1270.2,1268.2,0.48306902]
[1610321651177,4.00959,1270.2,1268.2,0.24158058]
[1610321651577,4.00959,1270.2,1268.0,0.24159591]
[1610321651978,4.00959,1268.7,1268.6,4.00959]
[1610321652378,4.00959,1268.7,1267.9,0.24159591]
[1610321652579,4.00959,1268.7,1268.1,1.20707953]
[1610321652980,59.9326,1269.6,1268.1,3.35877953]
[1610321653881,59.9326,1269.6,1268.2,1.20695782]
[1610321654080,59.9326,1269.6,1269.4,4.00959]
[1610321654281,59.9326,1269.6,1269.3,1.5894]
[1610321656082,4.00959,1269.4,1269.3,1.5894]
[1610321656483,4.00959,1269.4,1268.1,2.1517]
[1610321656884,5.96179,1269.4,1268.1,2.1517]
[1610321657884,4.00959,1269.4,1267.8,46.6362]
[1610321658084,59.9326,1269.6,1268.2,3.34891005]
[1610321659487,59.9326,1269.6,1268.3,1.20735635]
[1610321660086,4.00959,1269.5,1268.9,4.00959]
[1610321660486,4.00959,1269.5,1268.3,1.20735635]
[1610321660886,4.00959,1269.5,1269.0,1.20739232]
[1610321662091,4.00959,1269.1,1268.9,1.20747125]
[1610321663792,4.00959,1269.1,1268.8,1.9623]
[1610321663992,4.00959,1268.9,1268.8,1.9623]
[1610321665392,4.00959,1268.9,1268.8,3.16942199]
[1610321666593,1.5281,1269.9,1268.8,3.16942199]
[1610321668095,4.00959,1268.9,1268.8,1.9623]
[1610321668295,4.00959,1268.9,1268.3,4.00959]
[1610321668696,4.00959,1268.9,1268.2,2.1419]
[1610321668895,4.00959,1268.9,1268.0,55.2764]
[1610321669495,4.00959,1268.9,1268.3,1.2079313]
[1610321669700,4.00959,1268.9,1268.3,3.3037313]
[1610321670098,4.00959,1268.4,1268.3,3.3037313]
[1610321673101,4.00959,1268.4,1268.3,2.0958]
[1610321673699,4.00959,1268.4,1268.3,3.30401783]
[1610321675601,4.00959,1268.4,1268.3,1.20821783]
[1610321676203,6.13849,1268.4,1268.3,1.20821783]
[1610321676604,6.13849,1268.4,1266.3,1.20867477]
[1610321677406,5.7936,1268.3,1266.3,1.20867477]
[1610321677804,5.7936,1268.3,1265.6,0.48375459]
[1610321677805,5.7936,1268.3,1265.9,1.20877383]
[1610321678004,5.7936,1268.3,1266.1,4.00959]
[1610321678005,4.00959,1266.2,1266.1,4.00959]
[1610321678610,1.6702,1268.1,1266.1,4.00959]
[1610321679007,1.6702,1268.1,1266.1,6.51009]
[1610321679407,1.6702,1268.1,1266.1,7.71881315]
[1610321679607,1.6702,1268.1,1266.1,3.70922315]
[1610321680208,4.00959,1266.2,1266.1,3.70922315]
[1610321680607,4.00959,1266.2,1266.1,2.5005]
[1610321681008,1.6702,1268.1,1266.1,2.5005]
[1610321682210,4.00959,1266.2,1266.1,2.5005]
[1610321683610,4.00959,1266.2,1266.1,3.70972324]
[1610321684310,5.7461,1267.1,1266.1,3.70972324]
[1610321684911,5.7461,1267.1,1266.2,1.20918339]
[1610321685614,5.7461,1267.1,1266.1,2.5005]
[1610321685815,5.7461,1267.1,1265.5,4.00959]
[1610321686013,5.7461,1267.1,1265.0,0.24206585]
[1610321686213,4.00959,1265.7,1264.9,0.24211806]
[1610321686413,4.00959,1265.7,1264.6,0.24215457]
[1610321686619,4.00959,1265.7,1264.4,0.24219598]
[1610321687515,4.00959,1265.7,1264.5,1.21026681]
[1610321687718,4.00959,1265.7,1264.5,3.15352033]
[1610321687918,4.00959,1265.7,1264.5,2.91126681]
[1610321688117,4.00959,1265.3,1264.8,4.00959]
[1610321688719,4.00959,1265.3,1264.5,2.91126681]
[1610321689120,4.00959,1265.3,1264.9,1.21011256]
[1610321689520,4.00959,1265.3,1264.9,3.15731256]
[1610321690120,4.00959,1265.0,1264.9,3.15731256]
[1610321690722,4.00959,1265.0,1264.9,1.9472]
[1610321691825,4.00959,1265.0,1264.5,1.701]
[1610321692224,4.00959,1264.6,1264.5,1.701]
[1610321692624,4.00959,1264.6,1263.5,59.0467]
[1610321693426,5.5605,1265.3,1263.6,1.21093403]
[1610321693629,5.5605,1265.3,1263.6,3.25273403]
[1610321694227,5.5605,1265.3,1265.2,4.00959]
[1610321694426,5.5605,1265.3,1265.2,6.16089]
[1610321694828,5.5605,1265.3,1265.2,7.37103559]
[1610321695229,60.4596,1267.6,1265.2,7.37103559]
[1610321695830,60.4596,1267.6,1265.2,6.16089]
[1610321696234,4.00959,1266.7,1265.3,1.20950997]
[1610321697231,4.00959,1266.7,1265.2,2.1513]
[1610321697631,4.00959,1266.7,1265.4,1.20934549]
[1610321698231,4.00959,1265.7,1265.6,4.00959]
[1610321698634,4.00959,1265.7,1265.4,1.20934549]
[1610321699032,4.00959,1265.7,1265.6,1.20990687]
[1610321699236,4.00959,1265.7,1265.6,3.22940687]
[1610321702038,4.00959,1265.7,1265.6,1.20990687]
[1610321703339,4.00959,1265.7,1265.5,2.1758]
[1610321704640,4.00959,1265.7,1265.6,1.21060845]
[1610321705042,2.0854,1266.4,1265.6,1.21060845]
[1610321705242,2.0534,1266.7,1265.6,1.21060845]
[1610321705843,2.0851,1267.3,1265.6,1.21060845]
[1610321706246,1.8323,1267.9,1265.6,1.21060845]
[1610321706446,4.00959,1265.8,1265.7,4.00959]
[1610321706644,35.7258,1269.1,1265.7,4.00959]
[1610321706844,5.7258,1269.1,1265.7,4.00959]
[1610321707350,5.7258,1269.1,1265.8,1.20991388]
[1610321707544,5.63891549,1269.0,1265.8,1.20991388]
[1610321707745,7.97091549,1269.0,1265.8,1.20991388]
[1610321708344,7.97091549,1269.0,1266.9,4.00959]
[1610321708746,2.332,1269.0,1266.9,5.89209]
[1610321710044,2.332,1269.0,1267.0,1.20914547]
[1610321710443,4.00959,1267.1,1267.0,1.20914547]
[1610321711646,4.00959,1267.1,1266.9,1.8825]
[1610321713045,4.00959,1267.1,1266.3,53.7122]
[1610321714448,4.00959,1266.4,1266.3,53.7122]
[1610321714648,5.76679,1266.4,1266.3,53.7122]
[1610321716049,4.00959,1266.4,1266.3,53.7122]
[1610321716650,6.43219,1266.4,1266.3,53.7122]
[1610321718251,36.43219,1266.4,1266.3,53.7122]
[1610321718451,6.43219,1266.4,1263.8,4.00959]
[1610321719252,5.4823,1266.3,1263.8,4.00959]
[1610321719752,35.4823,1266.3,1263.9,1.21140375]
[1610321719952,35.4823,1266.3,1263.9,2.99800375]
[1610321720152,5.4823,1266.3,1263.9,2.99800375]
[1610321720351,4.00959,1265.1,1263.9,2.99800375]
[1610321721357,4.00959,1265.1,1264.0,1.21121417]
[1610321722454,4.00959,1264.1,1264.0,1.21121417]
[1610321724055,1.853,1265.2,1264.0,1.21121417]
[1610321724455,4.00959,1264.1,1264.0,1.21121417]
[1610321725256,1.853,1265.2,1264.0,1.21121417]
[1610321725658,5.4321,1265.4,1264.0,1.21121417]
[1610321726458,5.4321,1265.4,1264.6,4.00959]
[1610321726857,5.4321,1265.4,1264.6,5.89149]
[1610321728359,5.4321,1265.4,1264.7,1.21149517]
[1610321728760,35.4321,1265.4,1264.7,1.21149517]
[1610321729159,5.4321,1265.4,1264.7,1.21149517]
[1610321729862,5.4321,1265.4,1263.9,65.7805]
[1610321730059,6.9897,1265.4,1263.9,65.7805]
[1610321730259,30.0,1265.3,1263.9,65.7805]
[1610321730458,4.00959,1264.0,1263.9,65.7805]
[1610321732560,4.00959,1264.0,1263.9,66.99273907]
[1610321735764,6.9897,1265.4,1263.9,66.99273907]
[1610321736166,6.9897,1265.4,1263.9,68.99403907]
[1610321736365,4.00959,1264.0,1263.9,68.99403907]
[1610321736766,4.00959,1264.0,1263.9,67.7818]
[1610321737265,4.00959,1264.0,1263.9,2.0013]
[1610321738065,4.00959,1264.0,1263.9,3.21353727]
[1610321741669,4.00959,1264.0,1263.9,2.0013]
[1610321741871,4.00959,1264.0,1262.3,4.00959]
[1610321742068,4.00959,1264.0,1263.9,3.11873369]
[1610321746372,4.00959,1264.0,1263.9,1.9065]
[1610321747173,4.00959,1264.0,1263.6,2.1242]
[1610321747573,4.00959,1264.0,1262.5,55.2451]
[1610321748375,4.00959,1262.6,1262.5,55.2451]
[1610321751178,4.00959,1262.6,1262.5,56.45902573]
[1610321751678,2.1516,1263.3,1262.5,56.45902573]
[1610321751879,2.0703,1263.6,1262.5,56.45902573]
[1610321752080,2.343,1263.9,1262.5,58.10582573]
[1610321752477,4.00959,1263.2,1263.0,4.00959]
[1610321752878,4.00959,1263.2,1262.5,58.10582573]
[1610321753682,4.00959,1263.2,1262.6,1.21351954]
[1610321754080,4.00959,1263.2,1262.5,56.8919]
[1610321754481,4.00959,1262.6,1262.5,56.8919]
[1610321754684,4.00959,1262.6,1262.5,1.6468]
[1610321756788,4.00959,1262.6,1262.5,2.86087549]
[1610321758289,2.1043,1263.6,1262.5,2.86087549]
[1610321758489,4.00959,1262.8,1262.5,6.87046549]
[1610321758890,4.00959,1262.8,1262.5,2.86087549]
[1610321759491,4.00959,1262.8,1262.6,1.21377565]
[1610321760292,4.00959,1262.8,1262.5,1.6468]
[1610321760491,4.00959,1262.6,1262.5,1.6468]
[1610321760692,4.00959,1262.6,1262.2,1.8518]
[1610321762495,2.4647,1263.8,1262.3,1.21402679]
[1610321762693,2.251,1263.5,1262.3,1.21402679]
[1610321764494,4.00959,1262.4,1262.3,1.21402679]
[1610321764694,2.251,1263.5,1262.3,1.21402679]
[1610321766097,2.251,1263.5,1262.2,5.86139]
[1610321766499,4.00959,1262.5,1262.2,5.86139]
[1610321766702,4.00959,1262.5,1262.4,1.21374007]
[1610321768201,4.00959,1262.5,1262.3,1.21397348]
[1610321770004,2.3435,1263.1,1262.3,1.21397348]
[1610321770204,2.3399,1263.4,1262.3,1.21397348]
[1610321770606,30.0,1265.4,1262.5,4.00959]
[1610321770807,5.7528,1264.2,1262.5,4.00959]
[1610321771006,7.6268,1264.2,1262.5,5.58449]
[1610321771811,7.6268,1264.2,1262.5,1.5749]
[1610321772209,7.6268,1264.2,1262.6,1.21339077]
[1610321772509,4.00959,1263.0,1262.8,4.00959]
[1610321772711,4.00959,1263.0,1262.6,1.21339077]
[1610321774513,4.00959,1263.0,1262.7,4.00959]
[1610321774913,4.00959,1263.0,1262.6,1.21339077]
[1610321776317,1.9624,1264.1,1262.6,1.21339077]
[1610321776515,1.9624,1264.1,1263.4,4.00959]
[1610321776714,5.7528,1264.2,1263.4,6.32479]
[1610321776918,1.9344,1264.5,1263.4,6.32479]
[1610321777116,66.4889,1265.4,1263.4,6.32479]
[1610321777316,5.9802,1265.3,1263.4,6.32479]
[1610321777518,8.4618,1265.3,1263.4,6.32479]
[1610321778118,8.4618,1265.3,1263.5,1.21315033]
[1610321778519,8.4618,1265.3,1263.9,4.00959]
[1610321778719,8.4618,1265.3,1263.9,6.42169]
[1610321778919,2.4816,1265.3,1263.9,6.42169]
[1610321779519,60.6843,1265.4,1263.9,6.42169]
[1610321780522,4.00959,1264.5,1264.2,4.00959]
[1610321781722,4.00959,1264.5,1263.9,2.4121]
[1610321782524,4.00959,1264.0,1263.9,2.4121]
[1610321784131,4.00959,1264.0,1263.9,3.62491953]
[1610321785134,4.00959,1264.0,1263.9,1.21281953]
[1610321785332,4.00959,1264.0,1263.4,2.3152]
[1610321785732,4.00959,1264.0,1262.6,59.9434]
[1610321786533,4.00959,1263.6,1263.3,4.00959]
[1610321786933,4.00959,1263.6,1262.6,59.9434]
[1610321787136,4.00959,1263.6,1262.7,1.21317366]
[1610321787735,4.00959,1263.6,1262.6,59.9434]
[1610321788335,4.00959,1263.6,1262.8,1.21313651]
[1610321788535,4.00959,1263.9,1263.2,4.00959]
[1610321788734,6.9987,1265.1,1263.2,4.00959]
[1610321788935,5.4796,1265.1,1263.2,4.00959]
[1610321789134,5.4796,1265.1,1263.2,6.00579]
[1610321789737,64.1163,1265.2,1263.3,1.21268244]
[1610321790537,64.1163,1265.2,1264.2,4.00959]
[1610321791144,64.1163,1265.2,1264.2,6.12489]
[1610321792342,64.1163,1265.2,1264.3,1.21243746]
[1610321792543,4.00959,1264.4,1264.3,1.21243746]
[1610321792743,64.1163,1265.2,1264.3,1.21243746]
[1610321793543,5.4785,1266.5,1264.3,1.21243746]
[1610321794145,5.7131,1266.7,1264.3,1.21243746]
[1610321794544,4.00959,1264.4,1264.3,1.21243746]
[1610321796946,2.2932,1265.6,1264.3,1.21243746]
[1610321797545,1.5345,1265.9,1264.3,1.21243746]
[1610321797748,35.5697,1266.6,1264.3,1.21243746]
[1610321798345,5.5697,1266.6,1264.3,1.21243746]
[1610321798552,4.00959,1265.1,1264.8,4.00959]
[1610321800649,1.6198,1266.4,1264.9,1.21191715]
[1610321800850,1.6198,1266.4,1264.9,2.80291715]
[1610321802051,8.1529,1266.7,1264.9,2.80291715]
[1610321802249,8.1529,1266.7,1265.0,1.21197588]
[1610321802653,8.1529,1266.7,1265.3,4.00959]
[1610321802853,38.1529,1266.7,1265.3,6.19139]
[1610321803053,38.1529,1266.7,1265.3,2.1818]
[1610321804653,4.00959,1265.4,1265.3,2.1818]
[1610321806855,4.00959,1265.4,1264.8,47.7743]
[1610321807656,34.00959,1265.4,1264.8,47.7743]
[1610321808758,4.00959,1264.9,1264.8,47.7743]
[1610321812363,1.8147,1265.6,1263.9,4.00959]
[1610321812563,52.0003,1265.9,1263.9,4.00959]
[1610321812762,52.0003,1265.9,1263.9,2.4006]
[1610321813166,82.0003,1265.9,1263.9,2.4006]
[1610321813363,52.0003,1265.9,1263.9,2.4006]
[1610321814363,52.0003,1265.9,1264.0,1.21220717]
[1610321814765,4.00959,1265.1,1264.9,4.00959]
[1610321815965,52.0003,1265.9,1264.9,4.00959]
[1610321816367,52.0003,1265.9,1264.9,6.16219]
[1610321816565,52.0003,1265.9,1264.9,2.1526]
[1610321816765,4.00959,1265.0,1264.9,2.1526]
[1610321817965,52.0003,1265.9,1264.9,2.1526]
[1610321818567,52.0003,1265.9,1264.9,3.36467982]
[1610321818767,4.00959,1265.0,1264.9,3.36467982]
[1610321819168,52.0003,1265.9,1264.9,3.36467982]
[1610321819771,52.0003,1265.9,1265.0,1.21192751]
[1610321820668,4.00959,1265.1,1265.0,1.21192751]
[1610321822076,4.00959,1265.1,1264.9,2.1526]
[1610321822274,4.00959,1265.1,1264.4,49.4145]
[1610321822674,4.00959,1265.8,1265.0,1.21196659]
[1610321822875,4.00959,1265.8,1265.0,3.06406659]
[1610321824076,4.00959,1265.8,1265.1,1.21178709]
[1610321824676,4.00959,1265.2,1265.1,1.21178709]
[1610321825977,5.8575,1266.6,1265.1,1.21178709]
[1610321826678,4.00959,1265.5,1265.4,4.00959]
[1610321827077,2.4398,1266.7,1265.4,4.00959]
[1610321827279,5.5079,1267.1,1265.4,5.64279]
[1610321828280,50.5865,1267.2,1265.4,5.64279]
[1610321828681,4.00959,1265.9,1265.4,1.6332]
[1610321829483,50.5865,1267.2,1265.4,1.6332]
[1610321830083,50.5865,1267.2,1265.5,1.2113662]
[1610321830687,4.00959,1266.1,1265.8,4.00959]
[1610321831686,1.6112,1267.5,1265.8,4.00959]
[1610321831887,1.6112,1267.5,1265.8,6.41489]
[1610321832287,54.9926,1268.2,1265.8,6.41489]
[1610321832687,54.9926,1268.2,1266.8,4.00959]
[1610321833087,54.9926,1268.2,1266.8,5.78699]
[1610321834690,4.00959,1266.9,1266.8,1.7774]
[1610321836591,57.3717,1268.2,1266.8,1.7774]
[1610321836792,4.00959,1267.2,1266.9,4.00959]
[1610321838293,4.00959,1267.2,1266.8,1.7774]
[1610321838693,4.00959,1266.9,1266.8,1.7774]
[1610321838893,4.00959,1266.9,1266.7,4.00959]
[1610321839493,57.3717,1268.2,1266.7,4.00959]
[1610321839696,57.3717,1268.2,1266.7,5.77709]
[1610321840596,7.8827,1268.2,1266.7,5.77709]
[1610321840798,4.00959,1267.7,1267.5,4.00959]